[Event "*** SCC Grand Prix: Titled Tuesday Blitz"]
[Site "Chess.com"]
[Date "2020.06.09"]
[Round "7"]
[White "anon569"]
[Black "amatatanav"]
[Result "0-1"]
[WhiteElo "2293"]
[BlackElo "2414"]
[TimeControl "180+1"]
[EndTime "10:20:11 PDT"]
[Termination "amatatanav won by checkmate"]

1. e4 {[%clk 0:03:00.9]} 1... c5 {[%clk 0:02:59.6]} 2. Nf3 {[%clk 0:02:59.8]}
2... Nc6 {[%clk 0:03:00.1]} 3. d4 {[%clk 0:02:58.4]} 3... cxd4 {[%clk 0:03:01]}
4. Nxd4 {[%clk 0:02:59.3]} 4... g6 {[%clk 0:03:01.4]} 5. Nc3 {[%clk 0:02:59]}
5... Bg7 {[%clk 0:03:01.2]} 6. Be3 {[%clk 0:02:59.5]} 6... Nf6 {[%clk
0:03:01.6]} 7. Bc4 {[%clk 0:02:59.6]} 7... O-O {[%clk 0:03:01.9]} 8. Bb3 {[%clk
0:02:59.7]} 8... d5 {[%clk 0:03:01.7]} 9. exd5 {[%clk 0:02:52.6]} 9... Na5
{[%clk 0:03:01.4]} 10. Nde2 {[%clk 0:02:43]} 10... a6 {[%clk 0:02:45.7]} 11. O-O
{[%clk 0:02:17.7]} 11... b5 {[%clk 0:02:42.1]} 12. Nf4 {[%clk 0:02:16.9]} 12...
Bb7 {[%clk 0:02:37.9]} 13. Qe2 {[%clk 0:02:03.7]} 13... Nxb3 {[%clk 0:01:55.6]}
14. axb3 {[%clk 0:02:03.1]} 14... b4 {[%clk 0:01:38.7]} 15. Na4 {[%clk
0:02:01.1]} 15... Nxd5 {[%clk 0:01:05.3]} 16. Rfd1 {[%clk 0:01:39.6]} 16... e6
{[%clk 0:00:58.6]} 17. Nxd5 {[%clk 0:01:19.3]} 17... Bxd5 {[%clk 0:00:42.6]} 18.
Nb6 {[%clk 0:00:53.1]} 18... Rb8 {[%clk 0:00:42.5]} 19. Nxd5 {[%clk 0:00:36]}
19... exd5 {[%clk 0:00:43.4]} 20. Rxa6 {[%clk 0:00:36.3]} 20... Bxb2 {[%clk
0:00:41.2]} 21. Bc5 {[%clk 0:00:32.6]} 21... Re8 {[%clk 0:00:40.5]} 22. Qf3
{[%clk 0:00:31.8]} 22... Qc8 {[%clk 0:00:27.2]} 23. Ra2 {[%clk 0:00:13.1]} 23...
Qxc5 {[%clk 0:00:24]} 24. Rxb2 {[%clk 0:00:13.3]} 24... Re4 {[%clk 0:00:21.8]}
25. h3 {[%clk 0:00:13]} 25... Rbe8 {[%clk 0:00:20.6]} 26. Kh2 {[%clk 0:00:12.7]}
26... Qc7+ {[%clk 0:00:18.7]} 27. g3 {[%clk 0:00:11.6]} 27... Qc5 {[%clk
0:00:17.8]} 28. Rd2 {[%clk 0:00:11.5]} 28... R8e6 {[%clk 0:00:17.6]} 29. Rb1
{[%clk 0:00:10.1]} 29... Kg7 {[%clk 0:00:17.8]} 30. Rbd1 {[%clk 0:00:09.8]}
30... Rf6 {[%clk 0:00:17.8]} 31. Qg2 {[%clk 0:00:08.3]} 31... Rf5 {[%clk
0:00:17.1]} 32. f3 {[%clk 0:00:05.2]} 32... Re3 {[%clk 0:00:16.1]} 33. f4 {[%clk
0:00:05.5]} 33... h5 {[%clk 0:00:10.1]} 34. Rxd5 {[%clk 0:00:02.9]} 34... Rxd5
{[%clk 0:00:09.4]} 35. Rxd5 {[%clk 0:00:02.7]} 35... Qe7 {[%clk 0:00:08.2]} 36.
Rd2 {[%clk 0:00:03.2]} 36... h4 {[%clk 0:00:08.1]} 37. g4 {[%clk 0:00:03.3]}
37... Qf6 {[%clk 0:00:07.8]} 38. Rf2 {[%clk 0:00:03.8]} 38... Qc3 {[%clk
0:00:07.6]} 39. Qf1 {[%clk 0:00:04]} 39... Re1 {[%clk 0:00:05.4]} 40. Qg2 {[%clk
0:00:04.2]} 40... Qe3 {[%clk 0:00:04.9]} 41. Rf3 {[%clk 0:00:04.2]} 41... Qd4
{[%clk 0:00:03.8]} 42. Rf2 {[%clk 0:00:04.3]} 42... g5 {[%clk 0:00:03.9]} 43.
Qf3 {[%clk 0:00:04.4]} 43... Re3 {[%clk 0:00:03.4]} 44. Qg2 {[%clk 0:00:02.6]}
44... Rg3 {[%clk 0:00:03.2]} 45. Qf1 {[%clk 0:00:02.7]} 45... gxf4 {[%clk
0:00:02.4]} 46. Rxf4 {[%clk 0:00:02.9]} 46... Qd5 {[%clk 0:00:02.8]} 47. Rf2
{[%clk 0:00:03.4]} 47... Qe5 {[%clk 0:00:02.9]} 48. Rf5 {[%clk 0:00:01.1]} 48...
Qe6 {[%clk 0:00:02.6]} 49. Rf4 {[%clk 0:00:01.2]} 49... Re3 {[%clk 0:00:02.8]}
50. Rf2 {[%clk 0:00:01.7]} 50... Qe5+ {[%clk 0:00:02.5]} 51. Kg2 {[%clk
0:00:02]} 51... Qe4+ {[%clk 0:00:03.4]} 52. Kh2 {[%clk 0:00:01.7]} 52... Qe5+
{[%clk 0:00:04.3]} 53. Kh1 {[%clk 0:00:02.3]} 53... f6 {[%clk 0:00:05.2]} 54.
Kg1 {[%clk 0:00:02.7]} 54... Re1 {[%clk 0:00:05.5]} 55. Rg2 {[%clk 0:00:03.3]}
55... Rxf1+ {[%clk 0:00:05.6]} 56. Kxf1 {[%clk 0:00:03.9]} 56... Qf4+ {[%clk
0:00:06.3]} 57. Rf2 {[%clk 0:00:03.4]} 57... Qd4 {[%clk 0:00:07.2]} 58. Kg2
{[%clk 0:00:03.2]} 58... Qc3 {[%clk 0:00:07.7]} 59. Re2 {[%clk 0:00:03.4]} 59...
Qg3+ {[%clk 0:00:08.2]} 60. Kh1 {[%clk 0:00:03.7]} 60... Qxh3+ {[%clk
0:00:09.1]} 61. Rh2 {[%clk 0:00:03.7]} 61... Qf3+ {[%clk 0:00:09.2]} 62. Rg2
{[%clk 0:00:04.3]} 62... h3 {[%clk 0:00:09.1]} 63. Kh2 {[%clk 0:00:04.9]} 63...
Qxg2# {[%clk 0:00:09.6]} 0-1

[Event "*** SCC Grand Prix: Titled Tuesday Blitz"]
[Site "Chess.com"]
[Date "2020.06.09"]
[Round "7"]
[White "Andreikka"]
[Black "Duhless"]
[Result "1-0"]
[WhiteElo "2932"]
[BlackElo "3039"]
[TimeControl "180+1"]
[EndTime "10:20:12 PDT"]
[Termination "Andreikka won on time"]

1. c4 {[%clk 0:03:00.9]} 1... f5 {[%clk 0:02:54.5]} 2. Nc3 {[%clk 0:02:59.8]}
2... Nf6 {[%clk 0:02:54.2]} 3. d4 {[%clk 0:03:00.1]} 3... d6 {[%clk 0:02:53.2]}
4. Nf3 {[%clk 0:02:59.3]} 4... g6 {[%clk 0:02:53]} 5. g3 {[%clk 0:02:59.6]} 5...
Bg7 {[%clk 0:02:53.4]} 6. Bg2 {[%clk 0:02:59.9]} 6... O-O {[%clk 0:02:54.3]} 7.
O-O {[%clk 0:02:59.6]} 7... c6 {[%clk 0:02:54.9]} 8. d5 {[%clk 0:02:59.1]} 8...
e5 {[%clk 0:02:54]} 9. dxe6 {[%clk 0:02:59.5]} 9... Bxe6 {[%clk 0:02:54]} 10. b3
{[%clk 0:02:59.6]} 10... Na6 {[%clk 0:02:51.1]} 11. Bb2 {[%clk 0:02:58.7]} 11...
Nc5 {[%clk 0:02:49.8]} 12. Qc2 {[%clk 0:02:58]} 12... Qe7 {[%clk 0:02:48.3]} 13.
Rad1 {[%clk 0:02:57.7]} 13... a5 {[%clk 0:02:47.3]} 14. e3 {[%clk 0:02:48.8]}
14... Rad8 {[%clk 0:02:43.6]} 15. Ne2 {[%clk 0:02:48.2]} 15... Kh8 {[%clk
0:02:36.8]} 16. Nf4 {[%clk 0:02:33.6]} 16... Bf7 {[%clk 0:02:35.3]} 17. Ng5
{[%clk 0:02:27.1]} 17... Bg8 {[%clk 0:02:32.2]} 18. Bc3 {[%clk 0:02:26.4]} 18...
a4 {[%clk 0:02:29.4]} 19. Bd4 {[%clk 0:02:15]} 19... axb3 {[%clk 0:02:26.3]} 20.
axb3 {[%clk 0:02:15.9]} 20... Ncd7 {[%clk 0:02:17.9]} 21. Ra1 {[%clk 0:01:54]}
21... Ne5 {[%clk 0:02:15.5]} 22. Ra7 {[%clk 0:01:35.3]} 22... Rd7 {[%clk
0:02:06.8]} 23. Rd1 {[%clk 0:01:28.2]} 23... Re8 {[%clk 0:01:55.6]} 24. Bb2
{[%clk 0:01:08.8]} 24... Red8 {[%clk 0:01:41.3]} 25. Nf3 {[%clk 0:00:55.4]}
25... Ne4 {[%clk 0:01:34]} 26. Nd2 {[%clk 0:00:49.7]} 26... Nxf2 {[%clk
0:01:26.6]} 27. Re1 {[%clk 0:00:36.3]} 27... Nfg4 {[%clk 0:01:08.9]} 28. e4
{[%clk 0:00:36.5]} 28... d5 {[%clk 0:01:01.8]} 29. Ba3 {[%clk 0:00:20.3]} 29...
Qg5 {[%clk 0:00:26.5]} 30. cxd5 {[%clk 0:00:20.3]} 30... Nxh2 {[%clk 0:00:21.7]}
31. Kxh2 {[%clk 0:00:16]} 31... Ng4+ {[%clk 0:00:21.8]} 32. Kh1 {[%clk 0:00:16]}
32... Nf2+ {[%clk 0:00:16.7]} 33. Kh2 {[%clk 0:00:16]} 33... Ng4+ {[%clk
0:00:13.6]} 34. Kh1 {[%clk 0:00:16.3]} 34... Nf2+ {[%clk 0:00:13.5]} 35. Kh2
{[%clk 0:00:16]} 35... Qh6+ {[%clk 0:00:13.4]} 36. Nh3 {[%clk 0:00:13.7]} 36...
cxd5 {[%clk 0:00:12.5]} 37. exf5 {[%clk 0:00:10.9]} 37... Ng4+ {[%clk
0:00:11.6]} 38. Kh1 {[%clk 0:00:10]} 38... Nf2+ {[%clk 0:00:11.5]} 39. Kh2
{[%clk 0:00:10.5]} 39... Ng4+ {[%clk 0:00:10]} 40. Kh1 {[%clk 0:00:10.7]} 40...
Ne3 {[%clk 0:00:03.6]} 41. Qd3 {[%clk 0:00:10.6]} 41... Nxf5 {[%clk 0:00:03.6]}
42. g4 {[%clk 0:00:09.7]} 42... Nh4 {[%clk 0:00:03.2]} 43. g5 {[%clk 0:00:09]}
43... Qh5 {[%clk 0:00:03.5]} 44. Qg3 {[%clk 0:00:07.7]} 44... Nxg2 {[%clk
0:00:03.2]} 45. Kxg2 {[%clk 0:00:08.6]} 45... d4 {[%clk 0:00:03.2]} 46. Nf4
{[%clk 0:00:07.9]} 46... Bd5+ {[%clk 0:00:03.2]} 47. Nxd5 {[%clk 0:00:08.4]}
47... Rxd5 {[%clk 0:00:03.5]} 48. Nf3 {[%clk 0:00:07.9]} 48... d3 {[%clk
0:00:03.9]} 49. Rxb7 {[%clk 0:00:08.2]} 49... d2 {[%clk 0:00:03.9]} 50. Rd1
{[%clk 0:00:08.8]} 50... Re8 {[%clk 0:00:04.3]} 51. Rxg7 {[%clk 0:00:05.5]}
51... Kxg7 {[%clk 0:00:04.1]} 52. Bb2+ {[%clk 0:00:06]} 52... Kg8 {[%clk
0:00:04.2]} 53. Qf4 {[%clk 0:00:05.8]} 53... Re2+ {[%clk 0:00:03.6]} 54. Kg3
{[%clk 0:00:05.6]} 54... Re8 {[%clk 0:00:03.4]} 55. Qc4 {[%clk 0:00:05.2]} 55...
Rd8 {[%clk 0:00:02.6]} 56. Rxd2 {[%clk 0:00:05.7]} 1-0

[Event "*** SCC Grand Prix: Titled Tuesday Blitz"]
[Site "Chess.com"]
[Date "2020.06.09"]
[Round "7"]
[White "kuba2006"]
[Black "savagemedusa"]
[Result "1-0"]
[WhiteElo "2302"]
[BlackElo "2020"]
[TimeControl "180+1"]
[EndTime "10:20:18 PDT"]
[Termination "kuba2006 won by resignation"]

1. e4 {[%clk 0:03:00.9]} 1... g6 {[%clk 0:02:54.3]} 2. d4 {[%clk 0:03:00.2]}
2... Bg7 {[%clk 0:02:54.2]} 3. Nc3 {[%clk 0:03:00]} 3... d6 {[%clk 0:02:54.5]}
4. Be3 {[%clk 0:02:58.8]} 4... a6 {[%clk 0:02:52.4]} 5. f3 {[%clk 0:02:57.7]}
5... b5 {[%clk 0:02:46.5]} 6. Qd2 {[%clk 0:02:57.8]} 6... Nd7 {[%clk 0:02:43.9]}
7. O-O-O {[%clk 0:02:56.8]} 7... Bb7 {[%clk 0:02:43.6]} 8. Kb1 {[%clk
0:02:54.7]} 8... Rc8 {[%clk 0:02:43.5]} 9. g4 {[%clk 0:02:46]} 9... h5 {[%clk
0:02:41.6]} 10. g5 {[%clk 0:02:43.1]} 10... c5 {[%clk 0:02:38.2]} 11. dxc5
{[%clk 0:02:42.9]} 11... Nxc5 {[%clk 0:02:38.3]} 12. Bh3 {[%clk 0:02:41.2]}
12... Rc6 {[%clk 0:02:29.7]} 13. Nge2 {[%clk 0:02:37.4]} 13... Qa5 {[%clk
0:02:16.1]} 14. Nd5 {[%clk 0:02:16.5]} 14... Qa4 {[%clk 0:01:52.2]} 15. Nec3
{[%clk 0:01:59.7]} 15... Bxc3 {[%clk 0:01:26.6]} 16. Qxc3 {[%clk 0:01:55.1]}
16... Rh7 {[%clk 0:01:24.6]} 17. b3 {[%clk 0:01:29]} 17... Qa3 {[%clk
0:01:20.4]} 18. Bc1 {[%clk 0:01:28.7]} 18... b4 {[%clk 0:01:17.9]} 19. Qxb4
{[%clk 0:00:47.9]} 19... Qxb4 {[%clk 0:01:13]} 20. Nxb4 {[%clk 0:00:48.8]} 20...
Rb6 {[%clk 0:01:13.3]} 21. Nd5 {[%clk 0:00:47.1]} 21... Bxd5 {[%clk 0:01:12.7]}
22. Rxd5 {[%clk 0:00:47]} 22... e6 {[%clk 0:01:07.5]} 23. Rd4 {[%clk 0:00:46.2]}
23... Ne7 {[%clk 0:01:07.1]} 24. Rhd1 {[%clk 0:00:45.5]} 24... Nc8 {[%clk
0:01:06.9]} 25. Ba3 {[%clk 0:00:44.4]} 25... Rc6 {[%clk 0:00:56.8]} 26. e5
{[%clk 0:00:43.7]} 26... d5 {[%clk 0:00:55.4]} 27. c4 {[%clk 0:00:41]} 27... Nb6
{[%clk 0:00:51]} 28. cxd5 {[%clk 0:00:34.3]} 28... Nxd5 {[%clk 0:00:49.5]} 29.
Rc1 {[%clk 0:00:21.6]} 29... Nxb3 {[%clk 0:00:42.8]} 30. axb3 {[%clk 0:00:20.6]}
30... Rxc1+ {[%clk 0:00:29.9]} 31. Kxc1 {[%clk 0:00:21.5]} 31... Nc3 {[%clk
0:00:30]} 32. Rc4 {[%clk 0:00:15.8]} 32... Nb5 {[%clk 0:00:26.8]} 33. Bd6 {[%clk
0:00:10.3]} 33... Kd7 {[%clk 0:00:27.1]} 34. Kb2 {[%clk 0:00:09.1]} 34... Rh8
{[%clk 0:00:26.3]} 35. Bc5 {[%clk 0:00:08.3]} 35... Rb8 {[%clk 0:00:25.3]} 36.
Be3 {[%clk 0:00:07.7]} 36... a5 {[%clk 0:00:24]} 37. f4 {[%clk 0:00:07.7]} 37...
Rb7 {[%clk 0:00:20.1]} 38. Bg2 {[%clk 0:00:07.8]} 38... Rb8 {[%clk 0:00:19.2]}
39. Bc6+ {[%clk 0:00:07.3]} 39... Kd8 {[%clk 0:00:16.2]} 40. Bxb5 {[%clk
0:00:07.3]} 40... Rxb5 {[%clk 0:00:17.1]} 41. Ka3 {[%clk 0:00:06.9]} 41... Ke7
{[%clk 0:00:15.9]} 42. Bc5+ {[%clk 0:00:06.3]} 42... Kd7 {[%clk 0:00:16.3]} 43.
Ka4 {[%clk 0:00:06.5]} 43... Rb7 {[%clk 0:00:14.6]} 44. Rc3 {[%clk 0:00:05.1]}
44... Ke8 {[%clk 0:00:13.8]} 45. Kxa5 {[%clk 0:00:05.2]} 45... Rb8 {[%clk
0:00:13.4]} 46. b4 {[%clk 0:00:05.5]} 46... Ra8+ {[%clk 0:00:13.6]} 47. Kb6
{[%clk 0:00:05.7]} 47... Rb8+ {[%clk 0:00:13.8]} 48. Kc7 {[%clk 0:00:05.6]}
48... Rd8 {[%clk 0:00:14.2]} 49. b5 {[%clk 0:00:05.3]} 49... Rd7+ {[%clk
0:00:14.5]} 50. Kb6 {[%clk 0:00:05.2]} 50... Rd2 {[%clk 0:00:13.3]} 51. Ka7
{[%clk 0:00:04.6]} 51... Ra2+ {[%clk 0:00:12.9]} 52. Kb7 {[%clk 0:00:04.2]}
52... Rxh2 {[%clk 0:00:12.4]} 53. b6 {[%clk 0:00:04.5]} 53... Rb2 {[%clk
0:00:12.5]} 54. Bd6 {[%clk 0:00:04.5]} 54... h4 {[%clk 0:00:10]} 55. Kc7 {[%clk
0:00:04]} 55... h3 {[%clk 0:00:09.2]} 56. Rxh3 {[%clk 0:00:04.1]} 56... Rc2+
{[%clk 0:00:07]} 57. Kb7 {[%clk 0:00:04.5]} 57... Kd7 {[%clk 0:00:07]} 58. Ra3
{[%clk 0:00:04.2]} 58... Rc4 {[%clk 0:00:06.3]} 59. Ka7 {[%clk 0:00:04]} 59...
Rxf4 {[%clk 0:00:06.8]} 60. b7 {[%clk 0:00:04.2]} 60... Rf3 {[%clk 0:00:06]} 61.
b8=Q {[%clk 0:00:05.1]} 61... Rxa3+ {[%clk 0:00:05.8]} 62. Kb7 {[%clk 0:00:04]}
62... Rb3+ {[%clk 0:00:06]} 63. Ka7 {[%clk 0:00:04.3]} 63... Rxb8 {[%clk
0:00:06.7]} 64. Kxb8 {[%clk 0:00:04.5]} 64... Kc6 {[%clk 0:00:07]} 65. Kc8
{[%clk 0:00:04.9]} 65... Kd5 {[%clk 0:00:06.2]} 66. Kd7 {[%clk 0:00:05.3]} 66...
Ke4 {[%clk 0:00:06.8]} 67. Ke7 {[%clk 0:00:05.6]} 67... Kf5 {[%clk 0:00:07.4]}
68. Kxf7 {[%clk 0:00:05.5]} 68... Kxg5 {[%clk 0:00:07.5]} 69. Kxe6 {[%clk
0:00:06.1]} 69... Kf4 {[%clk 0:00:08]} 70. Kf6 {[%clk 0:00:06.3]} 70... g5
{[%clk 0:00:08.9]} 71. e6+ {[%clk 0:00:06.5]} 71... Ke4 {[%clk 0:00:08.1]} 72.
e7 {[%clk 0:00:07.4]} 1-0

[Event "*** SCC Grand Prix: Titled Tuesday Blitz"]
[Site "Chess.com"]
[Date "2020.06.09"]
[Round "7"]
[White "moro182"]
[Black "KobyKalavannan"]
[Result "0-1"]
[WhiteElo "2633"]
[BlackElo "2533"]
[TimeControl "180+1"]
[EndTime "10:20:20 PDT"]
[Termination "KobyKalavannan won by checkmate"]

1. d4 {[%clk 0:03:00.9]} 1... Nf6 {[%clk 0:02:59.3]} 2. c4 {[%clk 0:03:01.2]}
2... g6 {[%clk 0:02:59.9]} 3. g3 {[%clk 0:03:01.3]} 3... Bg7 {[%clk 0:03:00.4]}
4. Bg2 {[%clk 0:03:01.9]} 4... O-O {[%clk 0:03:00.4]} 5. Nc3 {[%clk 0:03:02.5]}
5... d6 {[%clk 0:03:01]} 6. Nf3 {[%clk 0:03:02.4]} 6... Nc6 {[%clk 0:03:01.1]}
7. O-O {[%clk 0:03:02.5]} 7... Bf5 {[%clk 0:03:00.5]} 8. Nh4 {[%clk 0:03:01.2]}
8... Bd7 {[%clk 0:02:59.6]} 9. f4 {[%clk 0:03:01.7]} 9... e5 {[%clk 0:02:52.7]}
10. d5 {[%clk 0:02:57.7]} 10... Na5 {[%clk 0:02:39.7]} 11. fxe5 {[%clk
0:02:55.1]} 11... dxe5 {[%clk 0:02:40.6]} 12. Qd3 {[%clk 0:02:52.1]} 12... c6
{[%clk 0:02:30.5]} 13. e4 {[%clk 0:02:40.3]} 13... cxd5 {[%clk 0:02:29.2]} 14.
exd5 {[%clk 0:02:34.1]} 14... Rc8 {[%clk 0:02:26]} 15. b3 {[%clk 0:02:29.5]}
15... e4 {[%clk 0:02:20.1]} 16. Qe2 {[%clk 0:02:25.7]} 16... Nxd5 {[%clk
0:02:09.8]} 17. Nxd5 {[%clk 0:02:26.6]} 17... Bxa1 {[%clk 0:02:09.1]} 18. Ba3
{[%clk 0:02:20.1]} 18... Bd4+ {[%clk 0:02:07.6]} 19. Kh1 {[%clk 0:02:19.9]}
19... Re8 {[%clk 0:01:58]} 20. Qd2 {[%clk 0:02:13.6]} 20... Nc6 {[%clk
0:01:55.7]} 21. Bb2 {[%clk 0:02:04.4]} 21... e3 {[%clk 0:01:42]} 22. Qe2 {[%clk
0:02:03.1]} 22... Be6 {[%clk 0:01:13.5]} 23. Bxd4 {[%clk 0:01:41.9]} 23... Nxd4
{[%clk 0:01:13.5]} 24. Qb2 {[%clk 0:01:39]} 24... Bxd5 {[%clk 0:01:12.1]} 25.
Bxd5 {[%clk 0:01:39.9]} 25... Ne6 {[%clk 0:00:45]} 26. Ng2 {[%clk 0:01:39.3]}
26... Qg5 {[%clk 0:00:43.2]} 27. Qe2 {[%clk 0:01:30.9]} 27... Nd4 {[%clk
0:00:34.6]} 28. Bxf7+ {[%clk 0:01:21.7]} 28... Kh8 {[%clk 0:00:35]} 29. Qb2
{[%clk 0:01:19.3]} 29... Red8 {[%clk 0:00:31.3]} 30. Bd5 {[%clk 0:01:16.9]}
30... Qe5 {[%clk 0:00:31.5]} 31. Re1 {[%clk 0:01:13.7]} 31... Rxd5 {[%clk
0:00:24.8]} 32. Rxe3 {[%clk 0:01:01.6]} 32... Qf6 {[%clk 0:00:24.6]} 33. Nf4
{[%clk 0:00:58.7]} 33... Rd7 {[%clk 0:00:22.5]} 34. Rd3 {[%clk 0:00:57]} 34...
Rcd8 {[%clk 0:00:22]} 35. Kg2 {[%clk 0:00:52.9]} 35... Qf5 {[%clk 0:00:19.6]}
36. Rd2 {[%clk 0:00:45.1]} 36... Qe4+ {[%clk 0:00:19.2]} 37. Kh3 {[%clk
0:00:44.6]} 37... g5 {[%clk 0:00:19.2]} 38. Nd5 {[%clk 0:00:33.1]} 38... g4+
{[%clk 0:00:17.7]} 39. Kh4 {[%clk 0:00:33.1]} 39... Rxd5 {[%clk 0:00:18]} 40.
cxd5 {[%clk 0:00:34]} 40... Rxd5 {[%clk 0:00:16.6]} 41. Qc3 {[%clk 0:00:33.1]}
41... Kg8 {[%clk 0:00:05.1]} 42. Qc8+ {[%clk 0:00:31.7]} 42... Kf7 {[%clk
0:00:05.6]} 43. Qxb7+ {[%clk 0:00:27]} 43... Ke6 {[%clk 0:00:06.2]} 44. Qc8+
{[%clk 0:00:22.3]} 44... Rd7 {[%clk 0:00:04.1]} 45. Qc4+ {[%clk 0:00:14]} 45...
Ke5 {[%clk 0:00:03.6]} 46. Qc5+ {[%clk 0:00:08.5]} 46... Rd5 {[%clk 0:00:04.1]}
47. Qe7+ {[%clk 0:00:08.3]} 47... Kf5 {[%clk 0:00:04.7]} 48. Qxh7+ {[%clk
0:00:06.3]} 48... Ke5 {[%clk 0:00:05.3]} 49. Qe7+ {[%clk 0:00:06.1]} 49... Ne6
{[%clk 0:00:05.5]} 50. Rxd5+ {[%clk 0:00:04]} 50... Qxd5 {[%clk 0:00:06.4]} 51.
Kxg4 {[%clk 0:00:03.7]} 51... Qe4+ {[%clk 0:00:07.1]} 52. Kh3 {[%clk 0:00:04.1]}
52... Qf5+ {[%clk 0:00:06.3]} 53. Kg2 {[%clk 0:00:04.5]} 53... Qe4+ {[%clk
0:00:06.9]} 54. Kh3 {[%clk 0:00:05]} 54... Qf5+ {[%clk 0:00:06.9]} 55. Kg2
{[%clk 0:00:05.5]} 55... Qc2+ {[%clk 0:00:05.7]} 56. Kh3 {[%clk 0:00:05.8]}
56... Qe2 {[%clk 0:00:03.5]} 57. Qe8 {[%clk 0:00:03.3]} 57... Qf1+ {[%clk
0:00:03.8]} 58. Kh4 {[%clk 0:00:03.7]} 58... Qf5 {[%clk 0:00:02.2]} 59. g4
{[%clk 0:00:02.8]} 59... Qh7+ {[%clk 0:00:02.5]} 60. Kg3 {[%clk 0:00:03.1]}
60... Qd3+ {[%clk 0:00:03.4]} 61. Kh4 {[%clk 0:00:03.4]} 61... Qe2 {[%clk
0:00:03.5]} 62. Qh5+ {[%clk 0:00:02.9]} 62... Kd4 {[%clk 0:00:03.2]} 63. Qh8+
{[%clk 0:00:02.8]} 63... Kd3 {[%clk 0:00:03.3]} 64. Qh7+ {[%clk 0:00:02.9]}
64... Kc3 {[%clk 0:00:03.6]} 65. Qh8+ {[%clk 0:00:02.9]} 65... Kc2 {[%clk
0:00:03.9]} 66. Qc8+ {[%clk 0:00:03]} 66... Kb2 {[%clk 0:00:04.3]} 67. Qb8
{[%clk 0:00:03.4]} 67... Qe1+ {[%clk 0:00:03.8]} 68. Kh5 {[%clk 0:00:03.8]}
68... Kxa2 {[%clk 0:00:04.7]} 69. b4 {[%clk 0:00:03.5]} 69... Qe4 {[%clk
0:00:03.9]} 70. Qxa7+ {[%clk 0:00:03.2]} 70... Kb3 {[%clk 0:00:04.2]} 71. Qf2
{[%clk 0:00:04.1]} 71... Qh7# {[%clk 0:00:04.1]} 0-1